Cogmind - Beta 12 @@@ ROGUE MODE // 2024.01.08 @ 19:19:34 Player: Dosh Result: Self-destructed Performance ------------- Evolutions (3) 1500 Regions Visited (8) 1600 Robots Destroyed (108) 540 Value Destroyed (3993) 3993 Prototype IDs (29) 580 Alien Tech Used (0) 0 Bonus (1644) 1644 TOTAL SCORE: 9857 Bonus ------- High Alert Combat Kills 137 Follower Combat Kills 7 Entered Garrisons 200 Used RIF Installer 1000 Aligned with FarCom 300 Cogmind --------- Core Integrity 227/700 Matter 64/300 Energy 97/100 System Corruption 5% Temperature Cool (17) Movement Core (1350) Ox26 Location -7/Factory Parts ------- > --- POWER (1) -------- (None) > --- PROPULSION (4) --- (None) > --- UTILITY (6) ------ Huge Storage Unit > --- WEAPON (2) ------- (None) > --- INVENTORY (25) --- Light Nuclear Core Improved Cooling System High-capacity Storage Unit High-capacity Matter Pod (200) Experimental Sensor Array Cloak of Protection Hacking Suite System Shield Relay Coupler [NC] (28) Relay Coupler [Grunt] (28) Component Analysis Suite Long-range Tractor Beam EM Pulse Cannon Heavy Particle Cannon Shotgun Proton Missile Launcher Peak State ------------ > --- POWER ------------ Light Nuclear Core > --- PROPULSION ------- Light Treads Light Treads Advanced Treads > --- UTILITY ---------- Huge Storage Unit Improved Terrain Scanner Utility Shielding Layered Light Armor Plating Improved Shield Generator System Shield > --- WEAPON ----------- Flak Cannon Advanced Assault Cannon > --- INVENTORY -------- Wheel Improved Cooling System High-capacity Storage Unit High-capacity Matter Pod Experimental Sensor Array Cloak of Protection System Shield Relay Coupler [NC] Relay Coupler [Grunt] Relay Coupler [Hunter] Component Analysis Suite Long-range Tractor Beam EM Pulse Cannon Advanced Beam Cannon Heavy Particle Cannon Shotgun Advanced Assault Cannon Advanced Assault Cannon Proton Missile Launcher Grenade Launcher Rocket Launcher Datajack [Rating: 38] Favorites ----------- Power Ion Engine Engine Ion Engine Power Core Light Nuclear Core Propulsion Light Treads Treads Light Treads Wheel Wheel Utility High-capacity Storage Unit Device Improved Terrain Scanner Storage High-capacity Storage Unit Hackware System Shield Protection Utility Shielding Weapon Advanced Beam Cannon Energy Gun Heavy Particle Gun Energy Cannon Advanced Beam Cannon Ballistic Gun Heavy Assault Rifle Ballistic Cannon Flak Cannon Launcher Rocket Launcher Special Melee Weapon Datajack Build | -11 -10 -10 -10 -9 -8 -8 -8 -7 ------- Run | Jun Mat Min Exi Min Mat Gar Mat Fac Slots Evolved 6 | . . . . . 4 . . 2 Power . | . . . . . . . . . Propulsion 2 | . . . . . 2 . . . Utility 4 | . . . . . 2 . . 2 Weapon . | . . . . . . . . . Parts Attached 114 | 7 20 1 1 4 28 14 18 21 Power 13 | 1 2 . . . 3 1 3 3 Engine 6 | 1 2 . . . 1 . 1 1 Core 7 | . . . . . 2 1 2 2 Reactor . | . . . . . . . . . Propulsion 37 | 2 7 . . 1 11 8 3 5 Treads 17 | 2 . . . . 5 5 2 3 Leg . | . . . . . . . . . Wheel 20 | . 7 . . 1 6 3 1 2 Hover . | . . . . . . . . . Flight . | . . . . . . . . . Utility 21 | 1 4 1 1 . 5 . 4 5 Device 7 | . 2 . . . 2 . 2 1 Storage 5 | 1 1 . 1 . . . 1 1 Processor . | . . . . . . . . . Hackware 4 | . . . . . 1 . 1 2 Protection 5 | . 1 1 . . 2 . . 1 Artifact . | . . . . . . . . . Weapon 43 | 3 7 . . 3 9 5 8 8 Energy Gun 4 | . . . . . 3 . 1 . Energy Cannon 11 | . 3 . . 1 3 2 1 1 Ballistic Gun 12 | 3 3 . . 1 1 2 2 . Ballistic Cannon 7 | . 1 . . . . . 2 4 Launcher 6 | . . . . 1 2 1 . 2 Special Weapon . | . . . . . . . . . Impact Weapon . | . . . . . . . . . Slashing Weapon . | . . . . . . . . . Piercing Weapon . | . . . . . . . . . Special Melee Weapon 3 | . . . . . . . 2 1 Unidentified Prototypes 4 | . 1 . . . 1 . 2 . Corrupted Parts 1 | . . . . . . . . 1 System Corruption 1 | . . . . . . . . 1 Parts Lost 45 | . 5 . . . 7 11 . 22 Power 6 | . 1 . . . 1 1 . 3 Propulsion 18 | . 3 . . . 3 6 . 6 Utility 9 | . . . . . 2 2 . 5 Weapon 12 | . 1 . . . 1 2 . 8 Highest Loss Streak 13 | . 4 . . . 4 5 . 13 To Critical Strikes . | . . . . . . . . . Average Slot Usage (%) 84 | . 89 100 100 100 82 82 76 77 Engine 5 | . 13 14 14 14 4 . . 1 Core 4 | . . . . . 3 8 9 5 Treads 13 | . 12 . . . 16 22 8 17 Wheel 12 | . 14 28 28 28 15 6 15 3 Device 5 | . 4 . . . 4 6 3 9 Storage 10 | . 14 14 14 14 9 9 9 7 Hackware 2 | . . . . . 4 . 4 5 Protection 8 | . 1 14 14 14 7 11 9 11 Energy Gun 1 | . . . . . 5 1 2 . Energy Cannon 4 | . 3 14 14 14 4 5 4 . Ballistic Gun 9 | . 22 14 14 14 6 8 1 . Ballistic Cannon 4 | . 1 . . . . . 7 13 Naked Turns . | . . . . . . . . . Heaviest Build 111 | 14 33 35 55 55 55 55 60 111 Greatest Support 83 | 40 40 20 20 20 80 83 42 62 Greatest Overweight (x) 28 | 1 3 1 2 2 2 5 5 28 Average Overweight (x) 1 | . . 1 1 2 . . 3 1 Largest Inventory Capacity 25 | 8 15 15 20 20 20 20 20 25 Average Capacity 18 | 7 14 15 15 20 20 20 20 21 Most Carried 24 | 5 15 15 15 17 20 20 20 24 Average Carried 15 | 2 8 14 15 15 17 18 18 20 Final Capacity 25 | 8 15 15 20 20 20 20 20 25 Final Carried 20 | 5 14 15 15 17 20 18 19 16 Class Distribution -------------------- 49% | Mutant 20% | Scavenger-Mutant 12% | Skirmisher 10% | Scavenger-Skirmisher 6% | Bothacker-Mutant Dominant Class ---------------- Mutant | -10/Materials Mutant | -10/Mines Mutant | -10/Exiles Mutant | -9/Mines Scavenger-Mutant | -8/Materials Scavenger-Mutant | -8/Garrison Bothacker-Mutant | -8/Materials Skirmisher | -7/Factory Resources | -11 -10 -10 -10 -9 -8 -8 -8 -7 ----------- Run | Jun Mat Min Exi Min Mat Gar Mat Fac Matter Collected 2879 | 241 803 103 . 47 480 504 232 469 Remotely . | . . . . . . . . . Salvage Created 3373 | 11 913 . . 57 743 855 171 623 Parts 208 | 5 54 . . 8 54 41 11 35 Haulers Intercepted 3 | . 1 . . . 2 . . . Recyclers Shooed 6 | . 2 . . . . . . 4 Parts Field Recycled . | . . . . . . . . . Retrieved Matter . | . . . . . . . . . Parts Self-Destructed . | . . . . . . . . . Prevented . | . . . . . . . . . Kills | -11 -10 -10 -10 -9 -8 -8 -8 -7 ------- Run | Jun Mat Min Exi Min Mat Gar Mat Fac Combat Hostiles Destroyed 75 | . 16 . . 4 13 22 4 16 Guns 30 | . 13 . . . 6 9 2 . Cannons 26 | . 3 . . . 2 5 2 14 AOE 19 | . . . . 4 5 8 . 2 Classes Destroyed 13 | 1 7 . . . 4 1 . . Worker 3 | . 3 . . . . . . . Builder 12 | . . . . . 9 . . 3 Tunneler 3 | 1 . . . 1 . . . 1 Hauler 3 | . 1 . . . 2 . . . Recycler 5 | . 1 . . . . . 1 3 Mechanic 1 | . . . . . 1 . . . Operator 2 | . 2 . . . . . . . Watcher 4 | . 3 . . . 1 . . . Swarmer 16 | . 3 . . 4 . 4 2 3 Grunt 46 | . 13 . . . 8 15 2 8 Duelist 2 | . . . . . 2 . . . Sentry 6 | . . . . . 3 1 . 2 Programmer 5 | . . . . . . 2 . 3 Best Kill Streak 15 | 1 4 . . 4 15 4 1 6 Combat Bots Only 5 | . 4 . . 4 5 4 1 3 Max Kills in Single Turn 5 | 1 1 . . 3 5 2 1 2 Gunslinging . | . . . . . . . . . Exploded 3 | . . . . 3 2 2 . 1 Melee . | . . . . . . . . . Uniques/NPCs Destroyed . | . . . . . . . . . Combat | -11 -10 -10 -10 -9 -8 -8 -8 -7 -------- Run | Jun Mat Min Exi Min Mat Gar Mat Fac Damage Taken 6151 | . 842 . . 75 1183 1463 171 2417 Core 1108 | . 112 . . 15 255 224 29 473 Absorbed by Shields 187 | . . . . . . . . 187 Redirected to Shielding 156 | . . . . . 28 103 3 22 Regen/Repaired (Parts) 236 | . 111 . . . . . 125 . Core Remaining (%) 52 | 100 . . . 49 . . 7 . Volleys Fired 305 | 2 86 . . 3 52 90 9 63 Largest 2 | 2 2 . . 2 2 2 2 2 Hottest 136 | 40 91 . . 91 136 136 99 96 Shots Fired 536 | 4 172 . . 4 93 144 19 100 Gun 319 | 4 158 . . 1 52 96 8 . Cannon 177 | . 14 . . 1 26 36 11 89 Launcher 40 | . . . . 2 15 12 . 11 Special . | . . . . . . . . . Kinetic 374 | 4 168 . . 1 27 84 10 80 Thermal 122 | . 4 . . 1 51 48 9 9 Explosive 40 | . . . . 2 15 12 . 11 Electromagnetic . | . . . . . . . . . Robot Hit Streak 19 | 1 5 . . 2 19 9 9 10 Robot Miss Streak 6 | 3 5 . . 1 6 4 1 5 Penetration Max . | . . . . . . . . . Secondary Targets 5 | . 2 . . . . 3 . . Max Gunslinging Chain 1 | . 1 . . . . 1 . . Shots Hit Robots 336 | 1 93 . . 2 54 90 17 79 Core Hits 222 | 1 43 . . 5 51 43 9 70 Critical Kills 1 | . 1 . . . . . . . Critical Parts Destroyed 2 | . 2 . . . . . . . Critical Strikes 8 | . 4 . . . 2 . 1 1 Burn 1 | . . . . . 1 . . . Destroy 4 | . 3 . . . 1 . . . Blast 3 | . 1 . . . . . 1 1 Melee Attacks 4 | . . . . . . . 3 1 Impact . | . . . . . . . . . Slashing . | . . . . . . . . . Piercing . | . . . . . . . . . Sneak Attacks . | . . . . . . . . . Combat Hostiles . | . . . . . . . . . Follow-up Attacks . | . . . . . . . . . Damage Inflicted 8443 | 29 1288 . . 195 2032 2221 304 2374 Guns 2757 | 29 1111 . . . 550 952 115 . Cannons 2878 | . 143 . . 20 329 507 168 1711 Explosions 2750 | . . . . 175 1153 762 . 660 Melee . | . . . . . . . . . Ramming 58 | . 34 . . . . . 21 3 Kinetic 3995 | 29 1214 . . . 278 808 118 1548 Thermal 1640 | . 40 . . 20 601 651 165 163 Explosive 2614 | . . . . 175 1017 762 . 660 Electromagnetic 136 | . . . . . 136 . . . Impact . | . . . . . . . . . Slashing . | . . . . . . . . . Piercing . | . . . . . . . . . Highest Corruption 5 | . . . . . . 3 5 5 Average Corruption 3 | . . . . . . 2 3 4 Corruption Purged . | . . . . . . . . . Corruption Blocked . | . . . . . . . . . Effects 23 | . . . . . . 8 11 4 Matter Fused 4 | . . . . . . 1 3 . Heat Flow Errors 4 | . . . . . . 2 1 1 Energy Discharges 5 | . . . . . . 1 3 1 Data Loss (minor) 5 | . . . . . . 3 1 1 Data Loss (major) 3 | . . . . . . 1 1 1 Misfires 2 | . . . . . . . 2 . Overload Shots . | . . . . . . . . . Overflow Damage 111 | . . . . . 17 62 5 27 Projectiles 60 | . . . . . . 36 5 19 Explosions 51 | . . . . . 17 26 . 8 Melee . | . . . . . . . . . Knockbacks 33 | . 2 . . . . . 3 28 Impact . | . . . . . . . . . Kinetic 28 | . 2 . . . . . 3 23 Secondary 5 | . . . . . . . . 5 Self-Inflicted Damage 546 | . 10 . . 30 282 106 4 114 Shots 18 | . . . . 1 9 4 . 4 Rammed 12 | . 6 . . . . . 3 3 Targets Rammed 12 | . 6 . . . . . 3 3 Kicked . | . . . . . . . . . Crushed . | . . . . . . . . . Highest Temperature 385 | . 108 . . 39 189 385 90 186 Average Temperature 70 | . 20 . . 21 76 101 34 71 Received Heat Transfer 2277 | . 438 . . . 477 747 63 552 Effects 2 | . . . . . . 2 . . Interference 1 | . . . . . . 1 . . Short Circuit 1 | . . . . . . 1 . . Siege Activations . | . . . . . . . . . Robots Corrupted . | . . . . . . . . . Combat Hostiles . | . . . . . . . . . Parts Fried 1 | . . . . . 1 . . . Impact Corruptions . | . . . . . . . . . Robots Melted . | . . . . . . . . . Combat Hostiles . | . . . . . . . . . Parts Melted 5 | . . . . . 1 2 . 2 Heat Transferred 3034 | . 74 . . 37 1184 1147 296 296 Parts Sabotaged . | . . . . . . . . . Parts Stolen . | . . . . . . . . . Parts Stripped . | . . . . . . . . . Power Chain Reactions . | . . . . . . . . . Missiles Intercepted . | . . . . . . . . . Alert | -11 -10 -10 -10 -9 -8 -8 -8 -7 ------- Run | Jun Mat Min Exi Min Mat Gar Mat Fac Peak Influence 831 | 5 308 78 . 106 274 831 491 169 Initial 404 | . 3 78 . . 40 93 404 169 Average 216 | . 195 67 . 101 108 485 394 94 Maximum Alert Level 3 | . 1 . . . 1 3 2 . Low Security (%) 64 | 100 47 100 . 100 95 25 . 100 Level 1 16 | . 52 . . . 4 3 42 . Level 2 16 | . . . . . . 57 57 . Level 3 2 | . . . . . . 13 . . Level 4 . | . . . . . . . . . Level 5 . | . . . . . . . . . High Security . | . . . . . . . . . Max Security . | . . . . . . . . . Squads Dispatched 22 | . 7 . . . 3 . . 12 Investigation 7 | . 5 . . . 1 . . 1 Extermination 2 | . . . . . . . . 2 Reinforcement 5 | . 2 . . . 1 . . 2 Assault . | . . . . . . . . . Garrison 8 | . . . . . 1 . . 7 Intercept . | . . . . . . . . . Searches Triggered . | . . . . . . . . . Construction Impeded 3 | . . . . . 1 . . 2 Haulers Reinforced . | . . . . . . . . . Active Scanning Responses . | . . . . . . . . . Cargo Convoy Interrupts . | . . . . . . . . . Stealth | -11 -10 -10 -10 -9 -8 -8 -8 -7 --------- Run | Jun Mat Min Exi Min Mat Gar Mat Fac Distress Signals 6 | . 3 . . . 3 . . . Communications Jammed . | . . . . . . . . . Distress Signals . | . . . . . . . . . Times Spotted 112 | . 30 . . 4 22 23 9 24 Peak Tracking Total 7 | . 4 . . 4 7 4 3 5 Tactical Retreats 9 | . 4 . . . 2 1 2 . Traps | -11 -10 -10 -10 -9 -8 -8 -8 -7 ------- Run | Jun Mat Min Exi Min Mat Gar Mat Fac Traps Triggered 6 | . 3 . . . . 2 . 1 Indirectly . | . . . . . . . . . Trap Hack Attempts . | . . . . . . . . . Triggered . | . . . . . . . . . Disarmed . | . . . . . . . . . Reprogrammed . | . . . . . . . . . Reused . | . . . . . . . . . Traps Extracted . | . . . . . . . . . Installed . | . . . . . . . . . Triggered . | . . . . . . . . . Machines | -11 -10 -10 -10 -9 -8 -8 -8 -7 ---------- Run | Jun Mat Min Exi Min Mat Gar Mat Fac Machines Disabled 10 | . 1 . . . 2 7 . . Max in Single Turn 2 | . 1 . . . 1 2 . . Garrison Relay 3 | . . . . . . 3 . . Phase Generator 1 | . . . . . . 1 . . Machines Repaired . | . . . . . . . . . Machines Sabotaged . | . . . . . . . . . Overloaded Fab Kills . | . . . . . . . . . Hacking | -11 -10 -10 -10 -9 -8 -8 -8 -7 --------- Run | Jun Mat Min Exi Min Mat Gar Mat Fac Machines Accessed 20 | . 8 . 2 . 5 1 3 1 Terminals 13 | . 5 . . . 4 1 2 1 Fabricators . | . . . . . . . . . Repair Stations 2 | . 1 . . . . . 1 . Recycling Units 2 | . 2 . . . . . . . Scanalyzers . | . . . . . . . . . Garrison Access 1 | . . . . . 1 . . . Total Hacks 56 | . 21 . 2 . 12 1 11 9 Successful 38 | . 15 . 2 . 8 1 8 4 Failed 17 | . 5 . . . 4 . 3 5 Catastrophic 2 | . . . . . . . 1 1 Database Lockouts 1 | . 1 . . . . . . . Manual 27 | . 11 . 1 . 6 . . 9 Terminals 41 | . 15 . . . 11 1 5 9 Fabricators . | . . . . . . . . . Repair Stations 10 | . 4 . . . . . 6 . Recycling Units 2 | . 2 . . . . . . . Scanalyzers . | . . . . . . . . . Garrison Access 1 | . . . . . 1 . . . Terminal Hacks 19 | . 5 . 2 . 4 1 4 3 Record 4 | . 1 . 1 . . . 2 . Robot Analysis 4 | . 2 . . . . . . 2 Prototype ID Bank 1 | . . . . . 1 . . . Branch Access Points 1 | . . . . . . . 1 . Emergency Access Points 1 | . . . . . . . 1 . Terminal Index 1 | . . . . . 1 . . . Alert Level 1 | . . . . . 1 . . . Patrol Status 1 | . . . . . 1 . . . Recall Reinforcements 1 | . 1 . . . . . . . Hauler Manifests 1 | . . . . . . . . 1 Zone Layout 1 | . 1 . . . . . . . Garrison Registry 1 | . . . . . . 1 . . EX-Prototype ID Bank 1 | . . . 1 . . . . . Fabricator Hacks . | . . . . . . . . . Repair Station Hacks 8 | . 4 . . . . . 4 . Scan Component 4 | . 2 . . . . . 2 . Repair 4 | . 2 . . . . . 2 . Recycling Unit Hacks . | . . . . . . . . . Scanalyzer . | . . . . . . . . . Garrison Access Hacks 1 | . . . . . 1 . . . Unlock Access 1 | . . . . . 1 . . . Unauthorized Hacks 10 | . 6 . . . 3 . . 1 Terminals 8 | . 4 . . . 3 . . 1 Assimilate 2 | . . . . . 2 . . . Botnet 5 | . 3 . . . 1 . . 1 Operators 1 | . 1 . . . . . . . Fabricators . | . . . . . . . . . Repair Stations . | . . . . . . . . . Recycling Units 2 | . 2 . . . . . . . Tunnel 2 | . 2 . . . . . . . Scanalyzers . | . . . . . . . . . Garrison Access . | . . . . . . . . . Data Cores Recovered . | . . . . . . . . . Used . | . . . . . . . . . Hacking Detections 13 | . 5 . . . 5 . 2 1 Full Trace Events 3 | . 1 . . . 1 . . 1 Feedback Events . | . . . . . . . . . Feedback Blocked . | . . . . . . . . . Robot Schematics Acquired . | . . . . . . . . . Robots Built . | . . . . . . . . . Authchips . | . . . . . . . . . Time . | . . . . . . . . . Total Robot Build Rating . | . . . . . . . . . Part Schematics Acquired . | . . . . . . . . . Parts Built . | . . . . . . . . . Authchips . | . . . . . . . . . Time . | . . . . . . . . . Total Part Build Rating . | . . . . . . . . . Parts Repaired 4 | . 2 . . . . . 2 . Time 110 | . 52 . . . . . 58 . Parts Recycled . | . . . . . . . . . Recycled Matter . | . . . . . . . . . Retrieved Matter . | . . . . . . . . . Retrieved Components . | . . . . . . . . . Parts Scanalyzed . | . . . . . . . . . Part Schematics Acquired . | . . . . . . . . . Parts Damaged . | . . . . . . . . . Bothacking | -11 -10 -10 -10 -9 -8 -8 -8 -7 ------------ Run | Jun Mat Min Exi Min Mat Gar Mat Fac Used RIF Installer 2 | . . . . . . 2 . . Signal Jammer 1 | . . . . . . 1 . . Robots Hacked 3 | . . . . . . . 2 1 Non-combat . | . . . . . . . . . Combat 3 | . . . . . . . 2 1 Robot Hacks Applied 4 | . . . . . . . 3 1 parse_system 1 | . . . . . . . 1 . streamctrl_high 2 | . . . . . . . 2 . formatsys_high 1 | . . . . . . . . 1 Relay Couplers Released 14 | . . . . . . 11 . 3 Machine Destruction 11 | . . . . . . 11 . . Programmers 3 | . . . . . . . . 3 Attached 2 | . . . . . . . 1 1 Fabnet Peak Effective % . | . . . . . . . . . Robots Rewired . | . . . . . . . . . Allies Hacked . | . . . . . . . . . Hacks Repelled . | . . . . . . . . . Allies | -11 -10 -10 -10 -9 -8 -8 -8 -7 -------- Run | Jun Mat Min Exi Min Mat Gar Mat Fac Total Allies 5 | . . . . . 2 . 2 1 Largest Group 1 | . . . . . 1 . 1 1 Highest-Rated Group 21 | . . . . . 10 . 15 21 Highest-Rated Ally 21 | . . . . . 10 . 15 21 Total Orders 2 | . . . . . . . 2 . FOLLOW 1 | . . . . . . . 1 . GUARD 1 | . . . . . . . 1 . Ally Attacks 11 | . . . . . . . 3 8 Total Damage 142 | . . . . . . . 54 88 Kills 2 | . . . . . . . 2 . Allies Corrupted . | . . . . . . . . . Allies Melted . | . . . . . . . . . Intel | -11 -10 -10 -10 -9 -8 -8 -8 -7 ------- Run | Jun Mat Min Exi Min Mat Gar Mat Fac Robot Analysis Total 4 | . 2 . . . . . . 2 Derelict Logs Recovered 2 | . . 2 . . . . . . Drone Launches . | . . . . . . . . . Drone Recoveries . | . . . . . . . . . Exploration | -11 -10 -10 -10 -9 -8 -8 -8 -7 ------------- Run | Jun Mat Min Exi Min Mat Gar Mat Fac Turns Passed 6686 | 116 1306 458 269 236 925 1162 690 1524 Spaces Moved 3834 | 62 784 474 277 202 556 605 307 567 Core 7 | 4 . . . . . . . 3 Treads 1350 | 58 202 . . . 244 381 14 451 Legs . | . . . . . . . . . Wheels 2477 | . 582 474 277 202 312 224 293 113 Hover . | . . . . . . . . . Flight . | . . . . . . . . . Fastest Speed 50 | 50 95 95 95 110 95 95 105 145 Average Speed 136 | 154 114 95 96 110 127 144 145 224 Slowest Speed 1450 | 160 160 95 110 110 320 240 232 1450 Overloaded Moves . | . . . . . . . . . Propulsion Burnouts . | . . . . . . . . . Robots Hopped . | . . . . . . . . . Cave-ins Triggered . | . . . . . . . . . Exploration Rate (%) 49 | 5 98 93 70 38 37 67 25 16 Regions Visited 8 Branch Regions 3 Pre-discovered Areas 4 | . 2 1 1 . . . . . Known Exits Taken 1 | . . . . . 1 . . . Unknown Exits Taken 6 | 1 1 1 1 1 . . 1 . Scrap Searched 3 | . . 3 . . . . . . Spaces Dug 1 | . . . . . . . . 1 Terrain Destroyed 236 | . . . . 11 23 163 . 39 Melee . | . . . . . . . . . Projectile 11 | . . . . . . . . 11 AOE 225 | . . . . 11 23 163 . 28 Terrain Rammed . | . . . . . . . . . Walls Destroyed . | . . . . . . . . . Machines Disabled . | . . . . . . . . . Actions | -11 -10 -10 -10 -9 -8 -8 -8 -7 --------- Run | Jun Mat Min Exi Min Mat Gar Mat Fac Total 4744 | 75 1023 482 280 209 682 753 529 711 Wait 362 | . 99 5 . . 25 25 168 40 Move 3825 | 61 783 473 276 201 555 603 306 567 Hop . | . . . . . . . . . Pick Up 55 | 5 13 1 1 1 8 7 9 10 Fast Attach 41 | 6 12 1 . . 9 1 4 8 Attach 41 | . 4 . . . 13 10 5 9 Detach 22 | . 6 1 . . 10 1 4 . Swap 32 | 1 4 . 1 4 6 3 9 4 Drop 37 | . 10 1 2 . 4 5 9 6 Fire 305 | 2 86 . . 3 52 90 9 63 Melee 4 | . . . . . . . 3 1 Ram 4 | . 3 . . . . . 1 . Kick . | . . . . . . . . . Crush 8 | . 3 . . . . . 2 3 Escape Stasis 8 | . . . . . . 8 . . Rewire . | . . . . . . . . . Trap . | . . . . . . . . . Miscellaneous . | . . . . . . . . . Route ------- -11/Junkyard -10/Materials (discovered 5 exits: [*Mat x3] / [*Min x2]) -10/Mines (discovered 3 exits: [*Mat x2] / *Exi) -10/Exiles -9/Mines -8/Materials (discovered 2 exits: *Fac / Gar) -8/Garrison (discovered 3 exits: *Mat x3) -8/Materials (discovered 2 exits: *Fac / Sto) -7/Factory History --------- Turn | Location | Event 7 | -11/Junkyard | Discovered new exit (range 14) 117 | -11/Junkyard | Entered Materials 312 | -10/Materials | Build established: Mutant 483 | -10/Materials | Discovered new exit (range 10) 586 | -10/Materials | Discovered new exit (range 12) 719 | -10/Materials | Lost 4 parts (1p2n1w) 782 | -10/Materials | Repaired Assault Rifle 809 | -10/Materials | Repaired Seismic Detector 854 | -10/Materials | Discovered new exit (range 15) 904 | -10/Materials | Central database locked down 1003 | -10/Materials | Discovered new exit (range 15) 1255 | -10/Materials | Discovered new exit (range 8) 1423 | -10/Materials | Entered Mines 1466 | -10/Mines | Met a Derelict bent on vengeance 1494 | -10/Mines | Learned Materials security intel 1516 | -10/Mines | Learned Materials trap positions 1534 | -10/Mines | Discovered new exit (range 6) 1652 | -10/Mines | YI-UF0 nonchalantly dropped a Grenade Launcher on the ground 1652 | -10/Mines | Discovered new exit (range 12) 1774 | -10/Mines | Found a damaged Exp. Sensor Array with a note attached 1780 | -10/Mines | Found Prototype Device 1878 | -10/Mines | Deemed a non-threat by the Exiles lab entrance 1878 | -10/Mines | Discovered new exit (range 5) 1881 | -10/Mines | Entered Exiles 1905 | -10/Exiles | Met 8R-AWN 1921 | -10/Exiles | Met EX-HEX 1949 | -10/Exiles | Met EX-BIN 1962 | -10/Exiles | Aligned with FarCom system 1963 | -10/Exiles | Given EX-Vault access code 1985 | -10/Exiles | Opened EX-Vault 1993 | -10/Exiles | Found Cloak of Protection 2015 | -10/Exiles | Warned to stay clear of 0b10 Research branches 2075 | -10/Exiles | Met EX-DEC 2095 | -10/Exiles | Learned location of Zion (-6) 2140 | -10/Exiles | Discovered new exit (range 10) 2150 | -10/Exiles | Left Exiles lab with Cloak of Protection 2150 | -10/Exiles | Entered Mines 2153 | -9/Mines | Core integrity fell below 50% 2216 | -9/Mines | Found a hidden stash of uninstalled traps 2356 | -9/Mines | Discovered new exit (range 7) 2366 | -9/Mines | Received a Rocket Launcher from a helpful Derelict 2386 | -9/Mines | Entered Materials 2386 | -8/Materials | Evolved 4 slots: Propulsion x2, Utility x2 2387 | -8/Materials | Loaded intel: 10 trap records 2783 | -8/Materials | Lost 3 parts (1n1u1w) 2977 | -8/Materials | Lost 4 parts (1p2n1u) 3218 | -8/Materials | Discovered new exit (range 8) 3273 | -8/Materials | Garrison activated, responded to threat 3285 | -8/Materials | Build established: Scavenger-Mutant 3310 | -8/Materials | Identified exit to Garrison 3311 | -8/Materials | Entered Garrison 3356 | -8/Garrison | Triggered checkpoint 3418 | -8/Garrison | Triggered checkpoint 3467 | -8/Garrison | Core integrity fell below 50% 3603 | -8/Garrison | Discovered new exit (range 10) 3724 | -8/Garrison | Phase Generator disabled 3778 | -8/Garrison | Triggered checkpoint 3926 | -8/Garrison | Discovered new exit (range 14) 3970 | -8/Garrison | Triggered checkpoint 4008 | -8/Garrison | Discovered new exit (range 24) 4008 | -8/Garrison | Discovered new exit (range 46) 4008 | -8/Garrison | Discovered new exit (range 52) 4054 | -8/Garrison | Installed Relay Interface Framework 4164 | -8/Garrison | Expanded RIF knowledge: Signal Jamming 4168 | -8/Garrison | Lost 5 parts (3n1u1w) 4212 | -8/Garrison | Garrison Relay disabled 4269 | -8/Garrison | Build established: Mutant 4308 | -8/Garrison | Core integrity fell below 20% 4338 | -8/Garrison | Triggered checkpoint 4348 | -8/Garrison | Lost 3 parts (2n1w) 4375 | -8/Garrison | Garrison Relay disabled 4401 | -8/Garrison | Garrison Relay disabled 4473 | -8/Garrison | Entered Materials 4779 | -8/Materials | Build established: Bothacker-Mutant 4889 | -8/Materials | Identified Exp. Sensor Array 4911 | -8/Materials | Identified exit to Storage 5042 | -8/Materials | Repaired Grenade Launcher 5075 | -8/Materials | Repaired Rocket Launcher 5146 | -8/Materials | Discovered new exit (range 4) 5163 | -8/Materials | Entered Factory 5163 | -7/Factory | Evolved 2 slots: Utility x2 5417 | -7/Factory | Build established: Skirmisher 5670 | -7/Factory | Garrison activated, responded to threat 6068 | -7/Factory | Build established: Scavenger-Skirmisher 6301 | -7/Factory | Garrison activated, responded to threat 6469 | -7/Factory | Garrison activated, responded to threat 6602 | -7/Factory | Lost 13 parts (1p4n5u3w) 6621 | -7/Factory | Core integrity fell below 50% 6687 | -7/Factory | Self-destructed Last Messages --------------- 06652_ U-05 Engineer lays Concrete. 06657_ R-06 Scavenger collects Imp. Heat Sink. 06657_ Acquired 43 matter. 06658_ U-05 Engineer lays Concrete. 06660_ U-05 Engineer destroyed. 06661_ ALERT: Construction progress impeded, dispatching reinforcements to local area. 06663_ ALERT: Rogue bot located, Programmers report to Factory Zone 6A. 06663_ U-05 Engineer lays Concrete. 06664_ Destroyed Welding Torch. 06664_ U-05 Engineer destroyed. 06672_ Datajack destroyed. 06674_ Com. Wheel destroyed. 06676_ Lgt. Nuclear Core destroyed. 06681_ G-47 Trooper destroyed. 06681_ Rocket Launcher destroyed. 06685_ G-47 Trooper knocked back. 06686_ Adv. Assault Cannon destroyed. 06686_ Critical hit (Burn: +37). 06687_ U-05 Engineer lays Concrete. Map ----- +----------------------------------------------------+ | ???????#???#????# ## ##??#?? | | ????#???????###?# "T" ## #????#? | | ??????????#?????#####+#[###########"#+############ | | ??????#????#???#??#?# | ! | | ?????##???#####???#?# ######### ### | | ???????????????#????# ##?##???# """" #?? | | ???????????########## #####?#?# """" #?? | | ???????????#] # ### ##### """" #?? | | ???????????# """" # # !# ### | | ????????#??# """" # # "" # """" #?? | | ?????????#?# """" # "G # """" #?? | | ?????????#?# """" # "" # """" ?? | | ?????????#?# """" # # ? | | ????????##?# ! """" Y # ? | | ??#????????# """" # == # ########## | | ???????????# # % == # #????##?## | | ???#??????##########; ] == # ######### | | ??????????# [ # # ## | | ??#???????# # # ## | | ?"????????# # ######## ## | | ??######### [+% g %?#????# ## | | ??# # """ #* ####??## ## | | ?"# [ # """""% # # ##??# ## | | ??# # """"" !#% [ ##### ## | | ??# # # =! = ## | | ??# ########### @ * ## | | ??+ #????#?#### ## | | ??# #??????#??# * * ##] | | ??# #?##?#?##?# |%!u ##% | | ??# #?????#???### T# ## ##### ## | | #?# #?###???????#### #??# ### | | # # ###?#???##??#??# #??# | | # ##+######?????#????????# ##?# | | # #????##########????## #??# | | # ##???# #???#?# #??# | | # ###### ##??### #### | | # + #?????# #??# ## | | #+##+###### #???#?# ##?# %# | | ??? ????# #?????# #??# + | | ??? ???# #?????# #??# ## | | #? ???# #???#?# #?## ## | | ? ???# #?????# #??# ## | | ?#######??# #???################### ## | | # ????#####+######## ^ !%% ##### | | # ##### [ #??## | | # ^ ^ ##??# | | + ^^ #???# | | # #???# | | # ##### ^ #?#?# | | # ?????### ^ #######+####### | +----------------------------------------------------+ Best States ------------- Heat Dissipation 45 Energy Generation 14 Energy Capacity 275 Matter Stores 300 Matter Capacity 300 Sight Range 16 Robot Scan Range 20 Terrain Scan Range 16 Terrain Scan Density 10 Additional Mass Support 6 Armor Coverage 150 Utility Shielding 33 Weapon Shielding 66 Evasion (%) 41 Recoil Reduction 4 Offensive Hacking 10 Defensive Hacking 10 Relay Coupler Types 1 Relay Coupler Value 11 Item Schematics ----------------- None Robot Schematics ------------------ None Fabricated ------------ Nothing Alien Tech Used ----------------- None Achievements -------------- None Challenges ------------ None Game ------ Seed TargetingRagnarokProjector Manual? 0 Play Time 00:45:16 Cumulative 90.9 hours Start 2024.01.08 @ 07:34:02 End 2024.01.08 @ 19:19:34 Sessions 5 Manual Loads 0 Difficulty Rogue Special Mode None Game No. 112 Rogue 112 Adventurer 0 Explorer 0 Win Type - Total 1 Types 1/0/0/0/0/0/0/0/0 Lore% 46 Gallery% 54 Achievement% 46 Wizard Run 0 Options --------- ASCII 0 Keyboard 1 Movement Numpad Keybinds 0 Fullscreen 2 Font 18/SmallcapsGlow Map View 76x50 Tactical HUD 1 Map Filters NONE Filters NONE Steam 1 RUN: 53e48ce4-6566-4146-9e20-7dabef94d56f